[Event "Titled Tuesday Blitz November 07 Early 2023"]
[White "GaiozNigalidze"]
[Black "Steinberg, Nitzan"]
[BlackFideId "2801795"]
[WhiteElo "2730"]
[BlackElo "2891"]
[Result "0-1"]
[Round "10"]
[TimeControl "180+1"]
[Date "2023.11.07"]
[WhiteClock "0:00:51"]
[BlackClock "0:01:09"]
[Board "20"]

1. d4 {[%clk 0:03:00]}  Nf6 {[%clk 0:02:59]} 2. c4 {[%clk 0:03:01]}  g6 {[%clk 0:02:59]} 3. Nc3 {[%clk 0:03:00]}  Bg7 {[%clk 0:03:00]} 4. e4 {[%clk 0:03:00]}  d6 {[%clk 0:03:00]} 5. Nf3 {[%clk 0:03:01]}  O-O {[%clk 0:03:01]} 6. h3 {[%clk 0:03:01]}  c5 {[%clk 0:02:58]} 7. d5 {[%clk 0:03:01]}  a6 {[%clk 0:02:58]} 8. a4 {[%clk 0:03:02]}  e6 {[%clk 0:02:58]} 9. Be2 {[%clk 0:03:00]}  exd5 {[%clk 0:02:59]} 10. exd5 {[%clk 0:03:01]}  Re8 {[%clk 0:02:59]} 11. O-O {[%clk 0:03:01]}  Nbd7 {[%clk 0:02:53]} 12. Bf4 {[%clk 0:02:57]}  Ne5 {[%clk 0:02:52]} 13. Nxe5 {[%clk 0:02:56]}  dxe5 {[%clk 0:02:53]} 14. Bg5 {[%clk 0:02:47]}  h6 {[%clk 0:02:50]} 15. Be3 {[%clk 0:02:44]}  Qd6 {[%clk 0:02:40]} 16. Qd2 {[%clk 0:02:41]}  g5 {[%clk 0:02:39]} 17. a5 {[%clk 0:02:31]}  Bd7 {[%clk 0:02:37]} 18. Bd3 {[%clk 0:02:21]}  e4 {[%clk 0:02:29]} 19. Bc2 {[%clk 0:02:22]}  Re7 {[%clk 0:02:19]} 20. Ba4 {[%clk 0:02:20]}  Bf5 {[%clk 0:02:16]} 21. Bd1 {[%clk 0:02:20]}  Bg6 {[%clk 0:02:13]} 22. Rb1 {[%clk 0:02:16]}  Nd7 {[%clk 0:02:10]} 23. Na4 {[%clk 0:02:15]}  f5 {[%clk 0:02:02]} 24. b4 {[%clk 0:02:15]}  f4 {[%clk 0:01:51]} 25. Bxc5 {[%clk 0:01:59]}  Nxc5 {[%clk 0:01:51]} 26. bxc5 {[%clk 0:02:00]}  Qf6 {[%clk 0:01:35]} 27. d6 {[%clk 0:01:24]}  Rf7 {[%clk 0:01:35]} 28. Bc2 {[%clk 0:01:15]}  f3 {[%clk 0:01:28]} 29. g4 {[%clk 0:01:08]}  h5 {[%clk 0:01:21]} 30. Qd5 {[%clk 0:01:02]}  Qf4 {[%clk 0:01:11]} 31. Rxb7 {[%clk 0:00:51]}  Be5 {[%clk 0:01:09]} 0-1


[Site "https://www.chess.com"]

[Event "Titled Tuesday Blitz November 07 Early 2023"]
[White "Dowgird, Filip"]
[Black "Zhigalko, Sergei"]
[WhiteFideId "1121235"]
[BlackFideId "13502956"]
[WhiteElo "2683"]
[BlackElo "2890"]
[Result "0-1"]
[Round "10"]
[TimeControl "180+1"]
[Date "2023.11.07"]
[WhiteClock "0:00:58"]
[BlackClock "0:01:17"]
[Board "21"]

1. d4 {[%clk 0:03:00]}  Nf6 {[%clk 0:02:59]} 2. Bg5 {[%clk 0:02:59]}  d5 {[%clk 0:02:59]} 3. Bxf6 {[%clk 0:02:59]}  exf6 {[%clk 0:03:00]} 4. Nd2 {[%clk 0:02:58]}  Bd6 {[%clk 0:02:56]} 5. e4 {[%clk 0:02:58]}  dxe4 {[%clk 0:02:55]} 6. Nxe4 {[%clk 0:02:58]}  O-O {[%clk 0:02:54]} 7. Nxd6 {[%clk 0:02:57]}  Qxd6 {[%clk 0:02:55]} 8. c3 {[%clk 0:02:57]}  Re8+ {[%clk 0:02:50]} 9. Be2 {[%clk 0:02:57]}  Bg4 {[%clk 0:02:41]} 10. h3 {[%clk 0:02:51]}  Bh5 {[%clk 0:02:39]} 11. Kf1 {[%clk 0:02:44]}  Bxe2+ {[%clk 0:02:29]} 12. Nxe2 {[%clk 0:02:44]}  c5 {[%clk 0:02:07]} 13. h4 {[%clk 0:02:30]}  Nc6 {[%clk 0:01:57]} 14. dxc5 {[%clk 0:02:23]}  Qxc5 {[%clk 0:01:56]} 15. Rh3 {[%clk 0:02:21]}  Qb5 {[%clk 0:01:47]} 16. Qc2 {[%clk 0:02:17]}  Rad8 {[%clk 0:01:33]} 17. c4 {[%clk 0:01:58]}  Qe5 {[%clk 0:01:27]} 18. Rc1 {[%clk 0:01:27]}  h5 {[%clk 0:01:25]} 19. Re3 {[%clk 0:01:14]}  Qh2 {[%clk 0:01:24]} 20. Rxe8+ {[%clk 0:01:13]}  Rxe8 {[%clk 0:01:24]} 21. g3 {[%clk 0:00:58]}  Nd4 {[%clk 0:01:17]} 0-1


[Site "https://www.chess.com"]

[Event "Titled Tuesday Blitz November 07 Early 2023"]
[White "Roebers, Eline"]
[Black "Deac, Bogdan-Daniel"]
[WhiteFideId "1058401"]
[BlackFideId "1226380"]
[WhiteElo "2604"]
[BlackElo "2979"]
[Result "1/2-1/2"]
[Round "10"]
[TimeControl "180+1"]
[Date "2023.11.07"]
[WhiteClock "0:00:02"]
[BlackClock "0:00:02"]
[Board "25"]

1. e4 {[%clk 0:03:00]}  c5 {[%clk 0:02:59]} 2. Nf3 {[%clk 0:03:01]}  e6 {[%clk 0:02:59]} 3. d4 {[%clk 0:03:01]}  cxd4 {[%clk 0:03:00]} 4. Nxd4 {[%clk 0:03:02]}  a6 {[%clk 0:03:00]} 5. Bd3 {[%clk 0:03:00]}  Nf6 {[%clk 0:02:57]} 6. O-O {[%clk 0:02:59]}  e5 {[%clk 0:02:57]} 7. Nf3 {[%clk 0:02:51]}  Nc6 {[%clk 0:02:56]} 8. c4 {[%clk 0:02:49]}  Bc5 {[%clk 0:02:54]} 9. Nc3 {[%clk 0:02:47]}  h6 {[%clk 0:02:53]} 10. a3 {[%clk 0:02:46]}  a5 {[%clk 0:02:45]} 11. Be3 {[%clk 0:02:33]}  d6 {[%clk 0:02:43]} 12. Qd2 {[%clk 0:02:13]}  Bg4 {[%clk 0:02:40]} 13. Ne1 {[%clk 0:02:12]}  Be6 {[%clk 0:02:29]} 14. Nc2 {[%clk 0:02:11]}  a4 {[%clk 0:02:28]} 15. Rad1 {[%clk 0:01:54]}  Qa5 {[%clk 0:01:32]} 16. Qe2 {[%clk 0:01:36]}  Ng4 {[%clk 0:01:16]} 17. Bxc5 {[%clk 0:01:21]}  dxc5 {[%clk 0:01:15]} 18. f3 {[%clk 0:01:07]}  Nf6 {[%clk 0:01:00]} 19. Nb5 {[%clk 0:01:07]}  O-O {[%clk 0:00:57]} 20. Qf2 {[%clk 0:01:05]}  Nd4 {[%clk 0:00:56]} 21. Ncxd4 {[%clk 0:00:59]}  cxd4 {[%clk 0:00:56]} 22. Qg3 {[%clk 0:00:54]}  Nd7 {[%clk 0:00:54]} 23. f4 {[%clk 0:00:45]}  f6 {[%clk 0:00:54]} 24. Rc1 {[%clk 0:00:30]}  Qb6 {[%clk 0:00:48]} 25. Kh1 {[%clk 0:00:28]}  Nc5 {[%clk 0:00:44]} 26. fxe5 {[%clk 0:00:26]}  fxe5 {[%clk 0:00:43]} 27. Be2 {[%clk 0:00:25]}  Nd7 {[%clk 0:00:11]} 28. c5 {[%clk 0:00:21]}  Rxf1+ {[%clk 0:00:07]} 29. Bxf1 {[%clk 0:00:20]}  Qc6 {[%clk 0:00:07]} 30. Nd6 {[%clk 0:00:20]}  Rf8 {[%clk 0:00:05]} 31. Bb5 {[%clk 0:00:18]}  Qc7 {[%clk 0:00:04]} 32. Bxd7 {[%clk 0:00:18]}  Qxd7 {[%clk 0:00:04]} 33. Qxe5 {[%clk 0:00:18]}  d3 {[%clk 0:00:04]} 34. Qd4 {[%clk 0:00:15]}  b6 {[%clk 0:00:03]} 35. c6 {[%clk 0:00:13]}  Qd8 {[%clk 0:00:03]} 36. Qxd3 {[%clk 0:00:14]}  Qg5 {[%clk 0:00:02]} 37. Rd1 {[%clk 0:00:13]}  Rf2 {[%clk 0:00:02]} 38. Qg3 {[%clk 0:00:12]}  Qd2 {[%clk 0:00:01]} 39. Rg1 {[%clk 0:00:09]}  Qxb2 {[%clk 0:00:01]} 40. c7 {[%clk 0:00:08]}  Rc2 {[%clk 0:00:02]} 41. Ne8 {[%clk 0:00:07]}  Qc3 {[%clk 0:00:01]} 42. Qd6 {[%clk 0:00:07]}  Bf7 {[%clk 0:00:01]} 43. Qe7 {[%clk 0:00:05]}  Bxe8 {[%clk 0:00:02]} 44. Qxe8+ {[%clk 0:00:05]}  Kh7 {[%clk 0:00:02]} 45. Qe6 {[%clk 0:00:03]}  Qxc7 {[%clk 0:00:03]} 46. Qf5+ {[%clk 0:00:03]}  g6 {[%clk 0:00:03]} 47. Qd5 {[%clk 0:00:03]}  Qe7 {[%clk 0:00:02]} 48. Qd4 {[%clk 0:00:03]}  b5 {[%clk 0:00:02]} 49. Qd5 {[%clk 0:00:03]}  Rc5 {[%clk 0:00:02]} 50. Qd4 {[%clk 0:00:03]}  Rc4 {[%clk 0:00:03]} 51. Qd5 {[%clk 0:00:03]}  Rc5 {[%clk 0:00:03]} 52. Qd4 {[%clk 0:00:03]}  Re5 {[%clk 0:00:03]} 53. Re1 {[%clk 0:00:02]}  Qc5 {[%clk 0:00:03]} 54. Qd7+ {[%clk 0:00:02]}  Re7 {[%clk 0:00:04]} 55. Qd3 {[%clk 0:00:03]}  Qf2 {[%clk 0:00:04]} 56. Rf1 {[%clk 0:00:02]}  Qb2 {[%clk 0:00:04]} 57. e5 {[%clk 0:00:01]}  Qxe5 {[%clk 0:00:04]} 58. h3 {[%clk 0:00:02]}  Qc5 {[%clk 0:00:04]} 59. Qf3 {[%clk 0:00:01]}  h5 {[%clk 0:00:04]} 60. Qg3 {[%clk 0:00:01]}  Qd5 {[%clk 0:00:04]} 61. Qf4 {[%clk 0:00:01]}  Rd7 {[%clk 0:00:04]} 62. Qf8 {[%clk 0:00:01]}  Qc4 {[%clk 0:00:04]} 63. Qf6 {[%clk 0:00:02]}  Qd5 {[%clk 0:00:04]} 64. Qf8 {[%clk 0:00:02]}  Qd6 {[%clk 0:00:04]} 65. Qe8 {[%clk 0:00:02]}  Qd5 {[%clk 0:00:02]} 66. Qf8 {[%clk 0:00:02]} 1/2-1/2


[Site "https://www.chess.com"]

[Event "Titled Tuesday Blitz November 07 Early 2023"]
[White "Zavgorodniy, Sergiy"]
[Black "Timofeev, Artyom"]
[WhiteFideId "14110148"]
[BlackFideId "4140419"]
[WhiteElo "2695"]
[BlackElo "2847"]
[Result "1/2-1/2"]
[Round "10"]
[TimeControl "180+1"]
[Date "2023.11.07"]
[WhiteClock "0:02:14"]
[BlackClock "0:02:12"]
[Board "28"]

1. d4 {[%clk 0:03:00]}  Nf6 {[%clk 0:02:58]} 2. c4 {[%clk 0:03:00]}  g6 {[%clk 0:02:58]} 3. Nc3 {[%clk 0:02:59]}  Bg7 {[%clk 0:02:58]} 4. e4 {[%clk 0:03:00]}  d6 {[%clk 0:02:58]} 5. Be2 {[%clk 0:03:00]}  O-O {[%clk 0:02:58]} 6. Nf3 {[%clk 0:03:00]}  e5 {[%clk 0:02:58]} 7. O-O {[%clk 0:03:00]}  exd4 {[%clk 0:02:58]} 8. Nxd4 {[%clk 0:03:00]}  Re8 {[%clk 0:02:59]} 9. f3 {[%clk 0:02:59]}  c6 {[%clk 0:02:59]} 10. Nc2 {[%clk 0:02:59]}  Be6 {[%clk 0:02:52]} 11. Kh1 {[%clk 0:02:57]}  d5 {[%clk 0:02:51]} 12. cxd5 {[%clk 0:02:57]}  cxd5 {[%clk 0:02:51]} 13. Nd4 {[%clk 0:02:56]}  dxe4 {[%clk 0:02:48]} 14. Nxe6 {[%clk 0:02:56]}  Qxd1 {[%clk 0:02:46]} 15. Rxd1 {[%clk 0:02:56]}  fxe6 {[%clk 0:02:43]} 16. Nxe4 {[%clk 0:02:48]}  Nxe4 {[%clk 0:02:42]} 17. fxe4 {[%clk 0:02:49]}  Nc6 {[%clk 0:02:42]} 18. Bg5 {[%clk 0:02:44]}  h6 {[%clk 0:02:35]} 19. Bh4 {[%clk 0:02:42]}  g5 {[%clk 0:02:35]} 20. Bg3 {[%clk 0:02:40]}  Red8 {[%clk 0:02:32]} 21. Bc4 {[%clk 0:02:30]}  Kf7 {[%clk 0:02:31]} 22. Rab1 {[%clk 0:02:21]}  Be5 {[%clk 0:02:29]} 23. Bf2 {[%clk 0:02:17]}  Bd4 {[%clk 0:02:18]} 24. Bg3 {[%clk 0:02:14]}  Be5 {[%clk 0:02:16]} 25. Bf2 {[%clk 0:02:14]}  Bd4 {[%clk 0:02:12]} 26. Bg3 {[%clk 0:02:14]}  Be5 {[%clk 0:02:12]} 1/2-1/2


[Site "https://www.chess.com"]

[Event "Titled Tuesday Blitz November 07 Early 2023"]
[White "mind1mover"]
[Black "Godzwon, Iwo"]
[BlackFideId "21802483"]
[WhiteElo "2822"]
[BlackElo "2693"]
[Result "1-0"]
[Round "10"]
[TimeControl "180+1"]
[Date "2023.11.07"]
[WhiteClock "0:02:03"]
[BlackClock "0:01:46"]
[Board "29"]

1. Nf3 {[%clk 0:03:00]}  b6 {[%clk 0:02:51]} 2. b3 {[%clk 0:03:00]}  Bb7 {[%clk 0:02:51]} 3. Bb2 {[%clk 0:03:01]}  f5 {[%clk 0:02:51]} 4. d3 {[%clk 0:03:00]}  e6 {[%clk 0:02:52]} 5. Nbd2 {[%clk 0:03:01]}  Nf6 {[%clk 0:02:53]} 6. g3 {[%clk 0:02:57]}  Be7 {[%clk 0:02:53]} 7. Bg2 {[%clk 0:02:58]}  O-O {[%clk 0:02:53]} 8. O-O {[%clk 0:02:58]}  d6 {[%clk 0:02:40]} 9. e4 {[%clk 0:02:58]}  fxe4 {[%clk 0:02:33]} 10. Ng5 {[%clk 0:02:58]}  e5 {[%clk 0:02:05]} 11. Ne6 {[%clk 0:02:57]}  Qc8 {[%clk 0:02:06]} 12. Nxf8 {[%clk 0:02:57]}  exd3 {[%clk 0:02:06]} 13. Bxb7 {[%clk 0:02:51]}  Qxb7 {[%clk 0:02:06]} 14. Ne6 {[%clk 0:02:45]}  h6 {[%clk 0:02:07]} 15. f4 {[%clk 0:02:26]}  Qc8 {[%clk 0:02:05]} 16. Qf3 {[%clk 0:02:14]}  c6 {[%clk 0:02:05]} 17. fxe5 {[%clk 0:02:12]}  dxe5 {[%clk 0:02:06]} 18. Qf5 {[%clk 0:02:12]}  Na6 {[%clk 0:01:56]} 19. Bxe5 {[%clk 0:02:06]}  dxc2 {[%clk 0:01:46]} 20. Nxg7 {[%clk 0:02:03]} 1-0


[Site "https://www.chess.com"]

[Event "Titled Tuesday Blitz November 07 Early 2023"]
[White "CrazyAdvenTures"]
[Black "Starozhilov, Leonid"]
[BlackFideId "14106752"]
[WhiteElo "2820"]
[BlackElo "2692"]
[Result "1-0"]
[Round "10"]
[TimeControl "180+1"]
[Date "2023.11.07"]
[WhiteClock "0:01:01"]
[BlackClock "0:00:02"]
[Board "30"]

1. e4 {[%clk 0:03:00]}  Nc6 {[%clk 0:02:57]} 2. Nf3 {[%clk 0:02:59]}  d6 {[%clk 0:02:58]} 3. d4 {[%clk 0:03:00]}  Nf6 {[%clk 0:02:58]} 4. Nc3 {[%clk 0:02:58]}  g6 {[%clk 0:02:58]} 5. h3 {[%clk 0:02:52]}  Bg7 {[%clk 0:02:58]} 6. Be3 {[%clk 0:02:53]}  O-O {[%clk 0:02:51]} 7. Qd2 {[%clk 0:02:52]}  e5 {[%clk 0:02:49]} 8. d5 {[%clk 0:02:51]}  Ne7 {[%clk 0:02:48]} 9. g4 {[%clk 0:02:45]}  c6 {[%clk 0:02:44]} 10. dxc6 {[%clk 0:02:43]}  bxc6 {[%clk 0:02:43]} 11. O-O-O {[%clk 0:02:44]}  d5 {[%clk 0:02:35]} 12. Nxe5 {[%clk 0:02:40]}  Qc7 {[%clk 0:02:27]} 13. f4 {[%clk 0:02:32]}  dxe4 {[%clk 0:02:01]} 14. Bc5 {[%clk 0:02:24]}  Be6 {[%clk 0:01:21]} 15. Bd6 {[%clk 0:02:16]}  Qb7 {[%clk 0:01:20]} 16. f5 {[%clk 0:02:16]}  gxf5 {[%clk 0:01:16]} 17. gxf5 {[%clk 0:02:17]}  Nxf5 {[%clk 0:01:16]} 18. Bxf8 {[%clk 0:02:17]}  Kxf8 {[%clk 0:01:04]} 19. Ng4 {[%clk 0:02:09]}  Nd5 {[%clk 0:01:00]} 20. Na4 {[%clk 0:01:49]}  Rb8 {[%clk 0:00:47]} 21. c3 {[%clk 0:01:44]}  h5 {[%clk 0:00:44]} 22. Nc5 {[%clk 0:01:40]}  Qe7 {[%clk 0:00:31]} 23. Nxe6+ {[%clk 0:01:37]}  Qxe6 {[%clk 0:00:22]} 24. Bc4 {[%clk 0:01:36]}  hxg4 {[%clk 0:00:17]} 25. hxg4 {[%clk 0:01:37]}  Nfe3 {[%clk 0:00:07]} 26. Bxd5 {[%clk 0:01:21]}  Nxd5 {[%clk 0:00:08]} 27. Rdf1 {[%clk 0:01:21]}  Kg8 {[%clk 0:00:08]} 28. Rf5 {[%clk 0:01:15]}  e3 {[%clk 0:00:07]} 29. Qd3 {[%clk 0:01:12]}  e2 {[%clk 0:00:07]} 30. Re1 {[%clk 0:01:11]}  Ne7 {[%clk 0:00:06]} 31. Rxe2 {[%clk 0:01:07]}  Qxa2 {[%clk 0:00:06]} 32. Rxe7 {[%clk 0:01:03]}  Rxb2 {[%clk 0:00:04]} 33. Re8+ {[%clk 0:01:01]}  Bf8 {[%clk 0:00:02]} 34. Rg5+ {[%clk 0:01:01]} 1-0


[Site "https://www.chess.com"]

[Event "Titled Tuesday Blitz November 07 Early 2023"]
[White "amanmuhammethommadov"]
[Black "Szpar, Milosz"]
[BlackFideId "1184989"]
[WhiteElo "2686"]
[BlackElo "2805"]
[Result "0-1"]
[Round "10"]
[TimeControl "180+1"]
[Date "2023.11.07"]
[WhiteClock "0:02:07"]
[BlackClock "0:01:02"]
[Board "32"]

1. e4 {[%clk 0:03:00]}  e6 {[%clk 0:02:55]} 2. d4 {[%clk 0:03:01]}  d5 {[%clk 0:02:54]} 3. e5 {[%clk 0:03:01]}  c5 {[%clk 0:02:54]} 4. c3 {[%clk 0:03:02]}  Nc6 {[%clk 0:02:52]} 5. Nf3 {[%clk 0:03:02]}  Bd7 {[%clk 0:02:50]} 6. a3 {[%clk 0:03:02]}  f6 {[%clk 0:02:49]} 7. Bd3 {[%clk 0:02:59]}  fxe5 {[%clk 0:02:46]} 8. dxe5 {[%clk 0:03:00]}  Qc7 {[%clk 0:02:41]} 9. Qe2 {[%clk 0:02:59]}  Nh6 {[%clk 0:02:39]} 10. O-O {[%clk 0:02:55]}  Nf7 {[%clk 0:02:38]} 11. Bf4 {[%clk 0:02:56]}  Be7 {[%clk 0:02:37]} 12. b4 {[%clk 0:02:56]}  g5 {[%clk 0:02:34]} 13. Bg3 {[%clk 0:02:54]}  h5 {[%clk 0:02:34]} 14. h3 {[%clk 0:02:44]}  O-O-O {[%clk 0:02:27]} 15. Nbd2 {[%clk 0:02:43]}  g4 {[%clk 0:02:16]} 16. hxg4 {[%clk 0:02:41]}  hxg4 {[%clk 0:02:17]} 17. Nh2 {[%clk 0:02:41]}  Ncxe5 {[%clk 0:02:17]} 18. Nxg4 {[%clk 0:02:38]}  c4 {[%clk 0:01:39]} 19. Nxe5 {[%clk 0:02:17]}  cxd3 {[%clk 0:01:22]} 20. Nxf7 {[%clk 0:02:16]}  dxe2 {[%clk 0:01:19]} 21. Bxc7 {[%clk 0:02:13]}  exf1=Q+ {[%clk 0:01:17]} 22. Rxf1 {[%clk 0:02:12]}  Kxc7 {[%clk 0:01:12]} 23. Nxh8 {[%clk 0:02:12]}  Rxh8 {[%clk 0:01:11]} 24. Nf3 {[%clk 0:02:11]}  Bf6 {[%clk 0:01:03]} 25. Re1 {[%clk 0:02:11]}  Kd6 {[%clk 0:01:03]} 26. Re3 {[%clk 0:02:07]}  Rc8 {[%clk 0:01:02]} 0-1


[Site "https://www.chess.com"]

[Event "Titled Tuesday Blitz November 07 Early 2023"]
[White "Sokolovsky, Yahli"]
[Black "Matinian, Nikita"]
[WhiteFideId "2820242"]
[BlackFideId "24129100"]
[WhiteElo "2798"]
[BlackElo "2672"]
[Result "1/2-1/2"]
[Round "10"]
[TimeControl "180+1"]
[Date "2023.11.07"]
[WhiteClock "0:00:05"]
[BlackClock "0:00:03"]
[Board "34"]

1. b3 {[%clk 0:03:00]}  g6 {[%clk 0:02:52]} 2. Bb2 {[%clk 0:03:01]}  Nf6 {[%clk 0:02:52]} 3. c4 {[%clk 0:02:59]}  Bg7 {[%clk 0:02:50]} 4. g3 {[%clk 0:03:00]}  d6 {[%clk 0:02:47]} 5. Bg2 {[%clk 0:02:59]}  e5 {[%clk 0:02:47]} 6. Nf3 {[%clk 0:02:58]}  c5 {[%clk 0:02:48]} 7. O-O {[%clk 0:02:53]}  Nc6 {[%clk 0:02:48]} 8. Nc3 {[%clk 0:02:52]}  O-O {[%clk 0:02:48]} 9. Ne1 {[%clk 0:02:50]}  h5 {[%clk 0:02:46]} 10. Nc2 {[%clk 0:02:49]}  h4 {[%clk 0:02:46]} 11. Ne3 {[%clk 0:02:48]}  h3 {[%clk 0:02:46]} 12. Bh1 {[%clk 0:02:46]}  Nd4 {[%clk 0:02:47]} 13. Ned5 {[%clk 0:02:45]}  Nxd5 {[%clk 0:02:41]} 14. Nxd5 {[%clk 0:02:42]}  Bg4 {[%clk 0:02:39]} 15. f3 {[%clk 0:02:37]}  Bd7 {[%clk 0:02:35]} 16. e3 {[%clk 0:02:33]}  Nc6 {[%clk 0:02:30]} 17. f4 {[%clk 0:02:31]}  f5 {[%clk 0:02:05]} 18. d3 {[%clk 0:02:04]}  g5 {[%clk 0:01:43]} 19. Qh5 {[%clk 0:01:55]}  Be8 {[%clk 0:01:42]} 20. Qxh3 {[%clk 0:01:49]}  Bg6 {[%clk 0:01:24]} 21. Qg2 {[%clk 0:01:39]}  a5 {[%clk 0:01:16]} 22. a4 {[%clk 0:01:34]}  Rf7 {[%clk 0:01:15]} 23. Bc3 {[%clk 0:01:27]}  exf4 {[%clk 0:01:04]} 24. Bxg7 {[%clk 0:01:26]}  Kxg7 {[%clk 0:01:05]} 25. gxf4 {[%clk 0:01:24]}  g4 {[%clk 0:01:06]} 26. Qb2+ {[%clk 0:01:20]}  Kh7 {[%clk 0:01:03]} 27. Rae1 {[%clk 0:01:09]}  Qh4 {[%clk 0:01:00]} 28. Qf2 {[%clk 0:00:37]}  Qh6 {[%clk 0:00:58]} 29. Bg2 {[%clk 0:00:36]}  Rh8 {[%clk 0:00:55]} 30. Qg3 {[%clk 0:00:34]}  Kg8 {[%clk 0:00:52]} 31. e4 {[%clk 0:00:34]}  fxe4 {[%clk 0:00:40]} 32. dxe4 {[%clk 0:00:31]}  Nd4 {[%clk 0:00:37]} 33. Qxg4 {[%clk 0:00:28]}  Qxh2+ {[%clk 0:00:34]} 34. Kf2 {[%clk 0:00:28]}  Qh4+ {[%clk 0:00:13]} 35. Qxh4 {[%clk 0:00:29]}  Rxh4 {[%clk 0:00:14]} 36. Re3 {[%clk 0:00:25]}  Rg7 {[%clk 0:00:06]} 37. Rg3 {[%clk 0:00:13]}  Bf7 {[%clk 0:00:06]} 38. Rg1 {[%clk 0:00:07]}  Rxg3 {[%clk 0:00:04]} 39. Kxg3 {[%clk 0:00:08]}  Rh6 {[%clk 0:00:03]} 40. Kf2 {[%clk 0:00:07]}  Bxd5 {[%clk 0:00:02]} 41. cxd5 {[%clk 0:00:05]}  Nxb3 {[%clk 0:00:01]} 42. Rb1 {[%clk 0:00:06]}  c4 {[%clk 0:00:01]} 43. Bf1 {[%clk 0:00:07]}  Nd2 {[%clk 0:00:01]} 44. Rxb7 {[%clk 0:00:06]}  Rh2+ {[%clk 0:00:02]} 45. Ke1 {[%clk 0:00:04]}  Nf3+ {[%clk 0:00:02]} 46. Kd1 {[%clk 0:00:05]}  Rd2+ {[%clk 0:00:03]} 47. Kc1 {[%clk 0:00:06]}  c3 {[%clk 0:00:03]} 48. Rb3 {[%clk 0:00:03]}  Rf2 {[%clk 0:00:03]} 49. Bd3 {[%clk 0:00:03]}  Nd4 {[%clk 0:00:03]} 50. Rxc3 {[%clk 0:00:03]}  Rxf4 {[%clk 0:00:03]} 51. Kd2 {[%clk 0:00:04]}  Kg7 {[%clk 0:00:03]} 52. Ke3 {[%clk 0:00:04]}  Rf3+ {[%clk 0:00:02]} 53. Kxd4 {[%clk 0:00:05]}  Kf6 {[%clk 0:00:03]} 54. Rc8 {[%clk 0:00:04]}  Rh3 {[%clk 0:00:03]} 55. Rf8+ {[%clk 0:00:04]}  Ke7 {[%clk 0:00:03]} 56. Ra8 {[%clk 0:00:05]}  Rh1 {[%clk 0:00:04]} 57. Rxa5 {[%clk 0:00:06]}  Ra1 {[%clk 0:00:05]} 58. Ra8 {[%clk 0:00:06]}  Kd7 {[%clk 0:00:05]} 59. a5 {[%clk 0:00:07]}  Kc7 {[%clk 0:00:05]} 60. a6 {[%clk 0:00:07]}  Ra4+ {[%clk 0:00:05]} 61. Ke3 {[%clk 0:00:08]}  Ra3 {[%clk 0:00:05]} 62. Ra7+ {[%clk 0:00:08]}  Kb6 {[%clk 0:00:05]} 63. Rb7+ {[%clk 0:00:09]}  Kc5 {[%clk 0:00:05]} 64. a7 {[%clk 0:00:09]}  Rxd3+ {[%clk 0:00:03]} 65. Kf4 {[%clk 0:00:08]}  Ra3 {[%clk 0:00:03]} 66. Kf5 {[%clk 0:00:08]}  Kd4 {[%clk 0:00:04]} 67. Ke6 {[%clk 0:00:09]}  Ra6 {[%clk 0:00:04]} 68. e5 {[%clk 0:00:05]}  dxe5+ {[%clk 0:00:04]} 69. d6 {[%clk 0:00:06]}  e4 {[%clk 0:00:04]} 70. Ke7 {[%clk 0:00:01]}  e3 {[%clk 0:00:03]} 71. d7 {[%clk 0:00:01]}  e2 {[%clk 0:00:03]} 72. Rb1 {[%clk 0:00:02]}  Rxa7 {[%clk 0:00:02]} 73. Ke6 {[%clk 0:00:02]}  Rxd7 {[%clk 0:00:02]} 74. Kxd7 {[%clk 0:00:03]}  Ke3 {[%clk 0:00:02]} 75. Kd6 {[%clk 0:00:03]}  Kd2 {[%clk 0:00:03]} 76. Kd5 {[%clk 0:00:04]}  e1=Q {[%clk 0:00:03]} 77. Rxe1 {[%clk 0:00:05]}  Kxe1 {[%clk 0:00:03]} 1/2-1/2


[Site "https://www.chess.com"]

[Event "Titled Tuesday Blitz November 07 Early 2023"]
[White "Javakhadze, Zurab"]
[Black "Gubajdullin, Alexei"]
[WhiteFideId "13603647"]
[BlackFideId "4141202"]
[WhiteElo "2795"]
[BlackElo "2655"]
[Result "0-1"]
[Round "10"]
[TimeControl "180+1"]
[Date "2023.11.07"]
[WhiteClock "0:00:00"]
[BlackClock "0:00:35"]
[Board "35"]

1. Nf3 {[%clk 0:03:00]}  Nf6 {[%clk 0:02:59]} 2. g3 {[%clk 0:03:01]}  g6 {[%clk 0:02:59]} 3. Bg2 {[%clk 0:02:56]}  Bg7 {[%clk 0:02:59]} 4. O-O {[%clk 0:02:57]}  O-O {[%clk 0:02:59]} 5. d4 {[%clk 0:02:51]}  d6 {[%clk 0:02:59]} 6. c4 {[%clk 0:02:49]}  Nbd7 {[%clk 0:02:57]} 7. Nc3 {[%clk 0:02:49]}  e5 {[%clk 0:02:57]} 8. e4 {[%clk 0:02:37]}  c6 {[%clk 0:02:57]} 9. h3 {[%clk 0:02:36]}  a5 {[%clk 0:02:57]} 10. Qc2 {[%clk 0:02:27]}  a4 {[%clk 0:02:55]} 11. Rd1 {[%clk 0:02:27]}  Qa5 {[%clk 0:02:54]} 12. Rb1 {[%clk 0:02:18]}  exd4 {[%clk 0:02:51]} 13. Nxd4 {[%clk 0:02:18]}  Re8 {[%clk 0:02:49]} 14. b4 {[%clk 0:02:17]}  axb3 {[%clk 0:02:49]} 15. axb3 {[%clk 0:02:17]}  h5 {[%clk 0:02:22]} 16. Bf4 {[%clk 0:01:56]}  Ne5 {[%clk 0:02:19]} 17. b4 {[%clk 0:01:45]}  Qc7 {[%clk 0:02:02]} 18. c5 {[%clk 0:01:43]}  dxc5 {[%clk 0:01:56]} 19. bxc5 {[%clk 0:01:44]}  h4 {[%clk 0:01:56]} 20. g4 {[%clk 0:01:11]}  Nf3+ {[%clk 0:01:55]} 21. Nxf3 {[%clk 0:01:12]}  Qxf4 {[%clk 0:01:55]} 22. Nxh4 {[%clk 0:01:11]}  Ra3 {[%clk 0:01:49]} 23. Ne2 {[%clk 0:01:05]}  Qc7 {[%clk 0:01:45]} 24. Rd3 {[%clk 0:00:42]}  Ra5 {[%clk 0:01:31]} 25. f4 {[%clk 0:00:36]}  Nxe4 {[%clk 0:01:23]} 26. Re3 {[%clk 0:00:33]}  Rxc5 {[%clk 0:01:19]} 27. Qxc5 {[%clk 0:00:25]}  Nxc5 {[%clk 0:01:18]} 28. Rxe8+ {[%clk 0:00:25]}  Kh7 {[%clk 0:01:18]} 29. Nf3 {[%clk 0:00:25]}  Bh6 {[%clk 0:01:05]} 30. Ne5 {[%clk 0:00:20]}  Ne6 {[%clk 0:00:58]} 31. Rd1 {[%clk 0:00:14]}  Nxf4 {[%clk 0:00:51]} 32. Nxf4 {[%clk 0:00:11]}  Bxf4 {[%clk 0:00:47]} 33. Nxf7 {[%clk 0:00:05]}  Qb6+ {[%clk 0:00:35]} 34. Kh1 {[%clk 0:00:04]}  Qb3 {[%clk 0:00:35]} 35. Rf1 {[%clk 0:00:02]}  Qg3 {[%clk 0:00:35]} 36. Rxf4 {[%clk 0:00:00]}  Qxf4 {[%clk 0:00:35]} 0-1


[Site "https://www.chess.com"]